[Event "Titled Tuesday Blitz December 20 Early 2022"]
[White "dropstoneDP"]
[Black "exoticprincess"]
[WhiteElo "3038"]
[BlackElo "3057"]
[Result "0-1"]
[Round "08"]
[TimeControl "180+2"]
[Date "2022.12.20"]
[WhiteClock "0:00:01"]
[BlackClock "0:00:08"]

1. e4 {[%clk 0:03:00]}  e5 {[%clk 0:02:49]} 2. Nf3 {[%clk 0:03:01]}  Nf6 {[%clk 0:02:50]} 3. Nc3 {[%clk 0:03:00]}  Nc6 {[%clk 0:02:49]} 4. d4 {[%clk 0:03:01]}  exd4 {[%clk 0:02:49]} 5. Nxd4 {[%clk 0:03:02]}  Bb4 {[%clk 0:02:46]} 6. Nxc6 {[%clk 0:03:01]}  bxc6 {[%clk 0:02:46]} 7. Bd3 {[%clk 0:03:02]}  d5 {[%clk 0:02:45]} 8. exd5 {[%clk 0:03:00]}  cxd5 {[%clk 0:02:46]} 9. O-O {[%clk 0:03:00]}  O-O {[%clk 0:02:47]} 10. Bg5 {[%clk 0:03:00]}  c6 {[%clk 0:02:44]} 11. Qf3 {[%clk 0:02:59]}  Be7 {[%clk 0:02:32]} 12. h3 {[%clk 0:02:57]}  h6 {[%clk 0:02:29]} 13. Bf4 {[%clk 0:02:55]}  Be6 {[%clk 0:02:27]} 14. Rad1 {[%clk 0:02:51]}  Re8 {[%clk 0:02:27]} 15. Ne2 {[%clk 0:02:47]}  Qb6 {[%clk 0:02:14]} 16. b3 {[%clk 0:02:38]}  c5 {[%clk 0:02:14]} 17. c3 {[%clk 0:02:22]}  a5 {[%clk 0:02:11]} 18. Be3 {[%clk 0:02:07]}  a4 {[%clk 0:02:00]} 19. b4 {[%clk 0:02:02]}  Nd7 {[%clk 0:01:45]} 20. Qg3 {[%clk 0:01:37]}  Bd6 {[%clk 0:01:41]} 21. Bf4 {[%clk 0:01:05]}  Bxf4 {[%clk 0:01:35]} 22. Qxf4 {[%clk 0:01:06]}  a3 {[%clk 0:01:29]} 23. Rfe1 {[%clk 0:00:55]}  Nf6 {[%clk 0:01:27]} 24. Rb1 {[%clk 0:00:49]}  Rec8 {[%clk 0:01:15]} 25. Rec1 {[%clk 0:00:42]}  Qc7 {[%clk 0:00:56]} 26. Qxc7 {[%clk 0:00:29]}  Rxc7 {[%clk 0:00:56]} 27. bxc5 {[%clk 0:00:29]}  Rxc5 {[%clk 0:00:57]} 28. Nd4 {[%clk 0:00:29]}  Bd7 {[%clk 0:00:53]} 29. f3 {[%clk 0:00:26]}  Ne8 {[%clk 0:00:37]} 30. Rb7 {[%clk 0:00:26]}  Ba4 {[%clk 0:00:32]} 31. Nf5 {[%clk 0:00:18]}  Kf8 {[%clk 0:00:30]} 32. Kf2 {[%clk 0:00:18]}  h5 {[%clk 0:00:26]} 33. Ke3 {[%clk 0:00:15]}  g6 {[%clk 0:00:26]} 34. Kd4 {[%clk 0:00:14]}  Rc7 {[%clk 0:00:20]} 35. Nd6 {[%clk 0:00:08]}  Ke7 {[%clk 0:00:14]} 36. Rxc7+ {[%clk 0:00:03]}  Nxc7 {[%clk 0:00:15]} 37. Nb7 {[%clk 0:00:01]}  Ne6+ {[%clk 0:00:15]} 38. Ke5 {[%clk 0:00:01]}  f6+ {[%clk 0:00:14]} 39. Kxd5 {[%clk 0:00:01]}  Nf4+ {[%clk 0:00:08]} 0-1


[Site "https://www.chess.com"]

[Event "Titled Tuesday Blitz December 20 Early 2022"]
[White "fks_stal_mielec"]
[Black "bennyficial"]
[WhiteElo "2284"]
[BlackElo "2145"]
[Result "1-0"]
[Round "08"]
[TimeControl "180+2"]
[Date "2022.12.20"]
[WhiteClock "0:00:21"]
[BlackClock "0:00:03"]

1. d4 {[%clk 0:03:00]}  Nf6 {[%clk 0:02:59]} 2. c4 {[%clk 0:03:00]}  e6 {[%clk 0:03:00]} 3. Nc3 {[%clk 0:03:00]}  Bb4 {[%clk 0:03:00]} 4. Qc2 {[%clk 0:02:59]}  O-O {[%clk 0:03:00]} 5. e4 {[%clk 0:02:57]}  d5 {[%clk 0:02:59]} 6. e5 {[%clk 0:02:57]}  Ne4 {[%clk 0:02:59]} 7. Bd3 {[%clk 0:02:58]}  c5 {[%clk 0:02:55]} 8. a3 {[%clk 0:02:56]}  cxd4 {[%clk 0:02:43]} 9. Bxe4 {[%clk 0:02:35]}  dxe4 {[%clk 0:02:41]} 10. axb4 {[%clk 0:02:35]}  dxc3 {[%clk 0:02:40]} 11. bxc3 {[%clk 0:02:31]}  Bd7 {[%clk 0:01:33]} 12. Ne2 {[%clk 0:02:18]}  Qc7 {[%clk 0:01:22]} 13. Qxe4 {[%clk 0:02:14]}  Bc6 {[%clk 0:01:22]} 14. Qg4 {[%clk 0:02:13]}  Qxe5 {[%clk 0:01:11]} 15. Be3 {[%clk 0:01:59]}  Nd7 {[%clk 0:01:02]} 16. Bd4 {[%clk 0:01:58]}  Nf6 {[%clk 0:00:53]} 17. Qxg7+ {[%clk 0:01:50]}  Kxg7 {[%clk 0:00:54]} 18. Bxe5 {[%clk 0:01:51]}  Kg6 {[%clk 0:00:52]} 19. Nd4 {[%clk 0:01:40]}  Nd7 {[%clk 0:00:41]} 20. Nxc6 {[%clk 0:01:33]}  bxc6 {[%clk 0:00:42]} 21. Bd6 {[%clk 0:01:34]}  Rfe8 {[%clk 0:00:36]} 22. O-O {[%clk 0:01:33]}  e5 {[%clk 0:00:36]} 23. Rfe1 {[%clk 0:01:33]}  f5 {[%clk 0:00:32]} 24. Ra6 {[%clk 0:01:26]}  Re6 {[%clk 0:00:15]} 25. c5 {[%clk 0:01:19]}  e4 {[%clk 0:00:04]} 26. Rxc6 {[%clk 0:01:14]}  Ne5 {[%clk 0:00:04]} 27. Rc7 {[%clk 0:01:06]}  Nd3 {[%clk 0:00:03]} 28. Rd1 {[%clk 0:01:03]}  f4 {[%clk 0:00:03]} 29. Re7 {[%clk 0:00:52]}  Re8 {[%clk 0:00:02]} 30. Rxa7 {[%clk 0:00:47]}  e3 {[%clk 0:00:02]} 31. fxe3 {[%clk 0:00:42]}  fxe3 {[%clk 0:00:03]} 32. Rxd3 {[%clk 0:00:41]}  e2 {[%clk 0:00:03]} 33. Bg3 {[%clk 0:00:39]}  e1=Q+ {[%clk 0:00:04]} 34. Bxe1 {[%clk 0:00:39]}  Rxe1+ {[%clk 0:00:05]} 35. Kf2 {[%clk 0:00:40]}  R1e2+ {[%clk 0:00:04]} 36. Kg3 {[%clk 0:00:40]}  Rc2 {[%clk 0:00:04]} 37. Rd6+ {[%clk 0:00:39]}  Kf5 {[%clk 0:00:03]} 38. Rf7+ {[%clk 0:00:37]}  Ke5 {[%clk 0:00:03]} 39. Rf3 {[%clk 0:00:37]}  Rg8+ {[%clk 0:00:03]} 40. Kh3 {[%clk 0:00:34]}  Rcxg2 {[%clk 0:00:04]} 41. Rg3 {[%clk 0:00:31]}  R8xg3+ {[%clk 0:00:01]} 42. hxg3 {[%clk 0:00:31]}  Rc2 {[%clk 0:00:01]} 43. Rh6 {[%clk 0:00:28]}  Rxc3 {[%clk 0:00:01]} 44. Rxh7 {[%clk 0:00:29]}  Kf5 {[%clk 0:00:02]} 45. Rd7 {[%clk 0:00:28]}  Rc4 {[%clk 0:00:02]} 46. Rb7 {[%clk 0:00:24]}  Ke5 {[%clk 0:00:03]} 47. g4 {[%clk 0:00:23]}  Kd5 {[%clk 0:00:03]} 48. g5 {[%clk 0:00:21]} 1-0


[Site "https://www.chess.com"]

[Event "Titled Tuesday Blitz December 20 Early 2022"]
[White "frequentblunders"]
[Black "Pachonpower"]
[WhiteElo "2156"]
[BlackElo "2254"]
[Result "1-0"]
[Round "08"]
[TimeControl "180+2"]
[Date "2022.12.20"]
[WhiteClock "0:01:37"]
[BlackClock "0:01:40"]

1. e3 {[%clk 0:03:00]}  e5 {[%clk 0:02:57]} 2. c4 {[%clk 0:03:01]}  b6 {[%clk 0:02:56]} 3. Nc3 {[%clk 0:03:02]}  Bb7 {[%clk 0:02:57]} 4. d4 {[%clk 0:03:02]}  Nf6 {[%clk 0:02:57]} 5. Nf3 {[%clk 0:03:03]}  exd4 {[%clk 0:02:55]} 6. exd4 {[%clk 0:03:03]}  d5 {[%clk 0:02:54]} 7. cxd5 {[%clk 0:02:59]}  Nxd5 {[%clk 0:02:55]} 8. Bc4 {[%clk 0:02:59]}  Be7 {[%clk 0:02:52]} 9. O-O {[%clk 0:02:59]}  O-O {[%clk 0:02:51]} 10. Re1 {[%clk 0:02:56]}  Bf6 {[%clk 0:02:49]} 11. Be3 {[%clk 0:02:48]}  Re8 {[%clk 0:02:41]} 12. a3 {[%clk 0:02:40]}  Nxe3 {[%clk 0:02:41]} 13. fxe3 {[%clk 0:02:40]}  Nd7 {[%clk 0:02:38]} 14. Qd3 {[%clk 0:02:40]}  c5 {[%clk 0:02:38]} 15. d5 {[%clk 0:02:40]}  Ne5 {[%clk 0:02:37]} 16. Nxe5 {[%clk 0:02:39]}  Rxe5 {[%clk 0:02:38]} 17. e4 {[%clk 0:02:39]}  a6 {[%clk 0:02:34]} 18. a4 {[%clk 0:02:36]}  Qd7 {[%clk 0:02:30]} 19. Rad1 {[%clk 0:02:36]}  Rae8 {[%clk 0:02:27]} 20. Bxa6 {[%clk 0:02:33]}  Bxa6 {[%clk 0:02:24]} 21. Qxa6 {[%clk 0:02:34]}  Rg5 {[%clk 0:02:23]} 22. Qxb6 {[%clk 0:02:25]}  Bd4+ {[%clk 0:02:21]} 23. Kh1 {[%clk 0:02:24]}  Rxg2 {[%clk 0:02:12]} 24. Qc6 {[%clk 0:02:14]}  Qxc6 {[%clk 0:02:07]} 25. dxc6 {[%clk 0:02:15]}  Rxb2 {[%clk 0:02:08]} 26. Nd5 {[%clk 0:01:57]}  Kf8 {[%clk 0:01:57]} 27. c7 {[%clk 0:01:50]}  Rc8 {[%clk 0:01:52]} 28. Rb1 {[%clk 0:01:47]}  Rxb1 {[%clk 0:01:38]} 29. Rxb1 {[%clk 0:01:48]}  Ke8 {[%clk 0:01:39]} 30. Rb8 {[%clk 0:01:40]}  Kd7 {[%clk 0:01:40]} 31. Nb6+ {[%clk 0:01:38]}  Ke8 {[%clk 0:01:40]} 32. Rxc8+ {[%clk 0:01:37]} 1-0


[Site "https://www.chess.com"]

[Event "Titled Tuesday Blitz December 20 Early 2022"]
[White "lamomiajunior"]
[Black "aidenzhouu"]
[WhiteElo "2526"]
[BlackElo "2386"]
[Result "1/2-1/2"]
[Round "08"]
[TimeControl "180+2"]
[Date "2022.12.20"]
[WhiteClock "0:01:31"]
[BlackClock "0:00:24"]

1. d4 {[%clk 0:03:00]}  Nf6 {[%clk 0:03:00]} 2. Nc3 {[%clk 0:03:00]}  e6 {[%clk 0:03:00]} 3. Bf4 {[%clk 0:03:01]}  d5 {[%clk 0:02:58]} 4. Nb5 {[%clk 0:03:01]}  Bd6 {[%clk 0:02:56]} 5. Nxd6+ {[%clk 0:03:00]}  cxd6 {[%clk 0:02:57]} 6. Nf3 {[%clk 0:03:01]}  Nc6 {[%clk 0:02:57]} 7. e3 {[%clk 0:03:02]}  O-O {[%clk 0:02:57]} 8. Be2 {[%clk 0:03:02]}  Ne4 {[%clk 0:02:52]} 9. O-O {[%clk 0:03:02]}  f5 {[%clk 0:02:44]} 10. c4 {[%clk 0:03:01]}  dxc4 {[%clk 0:02:44]} 11. Bxc4 {[%clk 0:02:49]}  d5 {[%clk 0:02:44]} 12. Bd3 {[%clk 0:02:48]}  g5 {[%clk 0:02:40]} 13. Bxe4 {[%clk 0:02:38]}  gxf4 {[%clk 0:02:31]} 14. Bd3 {[%clk 0:02:37]}  fxe3 {[%clk 0:02:27]} 15. fxe3 {[%clk 0:02:38]}  Bd7 {[%clk 0:02:21]} 16. a3 {[%clk 0:02:27]}  Kh8 {[%clk 0:02:18]} 17. b4 {[%clk 0:02:27]}  a6 {[%clk 0:02:11]} 18. Qd2 {[%clk 0:02:24]}  Rg8 {[%clk 0:02:08]} 19. a4 {[%clk 0:02:23]}  Be8 {[%clk 0:01:53]} 20. b5 {[%clk 0:02:21]}  Ne7 {[%clk 0:01:52]} 21. Rac1 {[%clk 0:02:17]}  axb5 {[%clk 0:01:46]} 22. axb5 {[%clk 0:02:18]}  Bh5 {[%clk 0:01:38]} 23. Ne5 {[%clk 0:02:16]}  Rg7 {[%clk 0:01:25]} 24. Rc2 {[%clk 0:02:13]}  Ng6 {[%clk 0:01:25]} 25. Nxg6+ {[%clk 0:02:10]}  Rxg6 {[%clk 0:01:04]} 26. Rfc1 {[%clk 0:02:09]}  Bf3 {[%clk 0:00:48]} 27. Qb4 {[%clk 0:01:56]}  Qg8 {[%clk 0:00:43]} 28. Bf1 {[%clk 0:01:55]}  Be4 {[%clk 0:00:39]} 29. Rd2 {[%clk 0:01:49]}  Qg7 {[%clk 0:00:30]} 30. Qd6 {[%clk 0:01:48]}  Rg8 {[%clk 0:00:25]} 31. g3 {[%clk 0:01:48]}  Qh6 {[%clk 0:00:20]} 32. Qf4 {[%clk 0:01:35]}  Qxf4 {[%clk 0:00:18]} 33. exf4 {[%clk 0:01:36]}  h5 {[%clk 0:00:16]} 34. Kf2 {[%clk 0:01:35]}  h4 {[%clk 0:00:17]} 35. Rc3 {[%clk 0:01:35]}  hxg3+ {[%clk 0:00:17]} 36. hxg3 {[%clk 0:01:35]}  Rh6 {[%clk 0:00:17]} 37. Bg2 {[%clk 0:01:33]}  Rh2 {[%clk 0:00:18]} 38. Kg1 {[%clk 0:01:33]}  Rxg2+ {[%clk 0:00:18]} 39. Rxg2 {[%clk 0:01:34]}  Bxg2 {[%clk 0:00:18]} 40. Kxg2 {[%clk 0:01:35]}  Kg7 {[%clk 0:00:18]} 41. Rc7+ {[%clk 0:01:35]}  Kf6 {[%clk 0:00:19]} 42. Rxb7 {[%clk 0:01:36]}  Ra8 {[%clk 0:00:19]} 43. Rc7 {[%clk 0:01:34]}  Ra4 {[%clk 0:00:19]} 44. b6 {[%clk 0:01:33]}  Rxd4 {[%clk 0:00:19]} 45. b7 {[%clk 0:01:34]}  Rb4 {[%clk 0:00:20]} 46. Rd7 {[%clk 0:01:34]}  Rb5 {[%clk 0:00:20]} 47. Kf3 {[%clk 0:01:33]}  Rb3+ {[%clk 0:00:20]} 48. Kf2 {[%clk 0:01:33]}  d4 {[%clk 0:00:20]} 49. Ke2 {[%clk 0:01:33]}  Re3+ {[%clk 0:00:19]} 50. Kd2 {[%clk 0:01:33]}  Rb3 {[%clk 0:00:20]} 51. Rc7 {[%clk 0:01:31]}  e5 {[%clk 0:00:20]} 52. Rc6+ {[%clk 0:01:31]}  Ke7 {[%clk 0:00:21]} 53. fxe5 {[%clk 0:01:31]}  Rxb7 {[%clk 0:00:20]} 54. Rg6 {[%clk 0:01:30]}  Kf7 {[%clk 0:00:20]} 55. Rf6+ {[%clk 0:01:30]}  Ke7 {[%clk 0:00:20]} 56. Rxf5 {[%clk 0:01:30]}  Ke6 {[%clk 0:00:21]} 57. Rg5 {[%clk 0:01:31]}  Rb3 {[%clk 0:00:21]} 58. g4 {[%clk 0:01:30]}  Rg3 {[%clk 0:00:21]} 59. Ke2 {[%clk 0:01:29]}  Re3+ {[%clk 0:00:22]} 60. Kf2 {[%clk 0:01:28]}  Rxe5 {[%clk 0:00:22]} 61. Rg6+ {[%clk 0:01:29]}  Kd5 {[%clk 0:00:23]} 62. Rg8 {[%clk 0:01:30]}  Ke4 {[%clk 0:00:23]} 63. Ke2 {[%clk 0:01:29]}  Rb5 {[%clk 0:00:22]} 64. Re8+ {[%clk 0:01:29]}  Kf4 {[%clk 0:00:23]} 65. Rg8 {[%clk 0:01:27]}  Rb3 {[%clk 0:00:23]} 66. g5 {[%clk 0:01:27]}  Rg3 {[%clk 0:00:22]} 67. g6 {[%clk 0:01:28]}  Kf5 {[%clk 0:00:23]} 68. Rf8+ {[%clk 0:01:28]}  Ke6 {[%clk 0:00:22]} 69. Rg8 {[%clk 0:01:27]}  Rg5 {[%clk 0:00:22]} 70. Kd3 {[%clk 0:01:27]}  Kf6 {[%clk 0:00:22]} 71. Re8 {[%clk 0:01:26]}  Kxg6 {[%clk 0:00:22]} 72. Ke4 {[%clk 0:01:27]}  Rg4+ {[%clk 0:00:22]} 73. Kd3 {[%clk 0:01:27]}  Kf5 {[%clk 0:00:21]} 74. Rf8+ {[%clk 0:01:28]}  Ke5 {[%clk 0:00:22]} 75. Re8+ {[%clk 0:01:29]}  Kd5 {[%clk 0:00:22]} 76. Rd8+ {[%clk 0:01:29]}  Ke5 {[%clk 0:00:23]} 77. Re8+ {[%clk 0:01:30]}  Kd5 {[%clk 0:00:24]} 78. Rd8+ {[%clk 0:01:30]}  Ke5 {[%clk 0:00:24]} 79. Re8+ {[%clk 0:01:31]} 1/2-1/2


[Site "https://www.chess.com"]

[Event "Titled Tuesday Blitz December 20 Early 2022"]
[White "newyorkmouse"]
[Black "Leon-Black"]
[WhiteElo "2457"]
[BlackElo "2634"]
[Result "0-1"]
[Round "08"]
[TimeControl "180+2"]
[Date "2022.12.20"]
[WhiteClock "0:00:25"]
[BlackClock "0:01:09"]

1. d4 {[%clk 0:03:00]}  Nf6 {[%clk 0:02:59]} 2. c4 {[%clk 0:02:58]}  c5 {[%clk 0:03:00]} 3. d5 {[%clk 0:02:57]}  b5 {[%clk 0:03:00]} 4. cxb5 {[%clk 0:02:57]}  a6 {[%clk 0:03:01]} 5. b6 {[%clk 0:02:58]}  d6 {[%clk 0:03:01]} 6. Nc3 {[%clk 0:02:58]}  Nbd7 {[%clk 0:03:01]} 7. e4 {[%clk 0:02:57]}  Rb8 {[%clk 0:03:02]} 8. Nf3 {[%clk 0:02:57]}  g6 {[%clk 0:03:02]} 9. Be2 {[%clk 0:02:57]}  Bg7 {[%clk 0:03:03]} 10. a4 {[%clk 0:02:57]}  Nxb6 {[%clk 0:03:02]} 11. a5 {[%clk 0:02:55]}  Na8 {[%clk 0:03:02]} 12. O-O {[%clk 0:02:55]}  O-O {[%clk 0:03:01]} 13. Nd2 {[%clk 0:02:54]}  Nc7 {[%clk 0:03:01]} 14. Nc4 {[%clk 0:02:53]}  Nd7 {[%clk 0:03:01]} 15. Qc2 {[%clk 0:02:49]}  Nb5 {[%clk 0:03:01]} 16. Na4 {[%clk 0:02:04]}  Nd4 {[%clk 0:02:57]} 17. Qd1 {[%clk 0:02:04]}  Ne5 {[%clk 0:02:46]} 18. Nxe5 {[%clk 0:01:58]}  Bxe5 {[%clk 0:02:47]} 19. Nb6 {[%clk 0:01:58]}  Rxb6 {[%clk 0:02:30]} 20. axb6 {[%clk 0:01:57]}  Qxb6 {[%clk 0:02:31]} 21. Be3 {[%clk 0:01:51]}  Qxb2 {[%clk 0:02:25]} 22. Bxd4 {[%clk 0:01:49]}  Bxd4 {[%clk 0:02:22]} 23. Ra4 {[%clk 0:01:43]}  f5 {[%clk 0:02:02]} 24. e5 {[%clk 0:01:35]}  dxe5 {[%clk 0:01:50]} 25. Bxa6 {[%clk 0:01:30]}  Bxa6 {[%clk 0:01:40]} 26. Rxa6 {[%clk 0:01:30]}  Qb7 {[%clk 0:01:40]} 27. Re6 {[%clk 0:01:17]}  Rd8 {[%clk 0:01:28]} 28. Qa4 {[%clk 0:01:11]}  Kf7 {[%clk 0:01:25]} 29. Ra6 {[%clk 0:00:53]}  Qxd5 {[%clk 0:01:24]} 30. Ra7 {[%clk 0:00:49]}  c4 {[%clk 0:01:23]} 31. Rb1 {[%clk 0:00:41]}  Bxa7 {[%clk 0:01:21]} 32. h3 {[%clk 0:00:36]}  Bd4 {[%clk 0:01:17]} 33. Rb5 {[%clk 0:00:33]}  Qe6 {[%clk 0:01:14]} 34. h4 {[%clk 0:00:31]}  c3 {[%clk 0:01:13]} 35. h5 {[%clk 0:00:30]}  Rc8 {[%clk 0:01:11]} 36. hxg6+ {[%clk 0:00:28]}  hxg6 {[%clk 0:01:12]} 37. Rb1 {[%clk 0:00:25]}  c2 {[%clk 0:01:11]} 38. Rc1 {[%clk 0:00:25]}  Qc4 {[%clk 0:01:09]} 0-1


[Site "https://www.chess.com"]

[Event "Titled Tuesday Blitz December 20 Early 2022"]
[White "profofchess"]
[Black "Cag, Ceyda"]
[BlackFideId "34571477"]
[WhiteElo "2442"]
[BlackElo "2157"]
[Result "1-0"]
[Round "08"]
[TimeControl "180+2"]
[Date "2022.12.20"]
[WhiteClock "0:00:10"]
[BlackClock "0:00:09"]

1. e4 {[%clk 0:02:57]}  c5 {[%clk 0:03:00]} 2. Nf3 {[%clk 0:02:57]}  d6 {[%clk 0:03:00]} 3. d4 {[%clk 0:02:55]}  cxd4 {[%clk 0:03:01]} 4. Nxd4 {[%clk 0:02:54]}  Nf6 {[%clk 0:03:01]} 5. Nc3 {[%clk 0:02:54]}  a6 {[%clk 0:03:02]} 6. Be2 {[%clk 0:02:53]}  e5 {[%clk 0:03:02]} 7. Nb3 {[%clk 0:02:53]}  Be7 {[%clk 0:03:02]} 8. Be3 {[%clk 0:02:53]}  Be6 {[%clk 0:03:02]} 9. Nd5 {[%clk 0:02:52]}  Nxd5 {[%clk 0:02:59]} 10. exd5 {[%clk 0:02:52]}  Bd7 {[%clk 0:02:58]} 11. c4 {[%clk 0:02:45]}  O-O {[%clk 0:02:57]} 12. O-O {[%clk 0:02:38]}  f5 {[%clk 0:02:55]} 13. f4 {[%clk 0:02:37]}  Bf6 {[%clk 0:02:33]} 14. c5 {[%clk 0:02:21]}  Ba4 {[%clk 0:02:27]} 15. Bc4 {[%clk 0:02:07]}  Nd7 {[%clk 0:02:16]} 16. c6 {[%clk 0:01:58]}  Nb6 {[%clk 0:02:14]} 17. cxb7 {[%clk 0:01:57]}  Rb8 {[%clk 0:02:14]} 18. Bxa6 {[%clk 0:01:56]}  g5 {[%clk 0:01:43]} 19. fxe5 {[%clk 0:01:18]}  Bxe5 {[%clk 0:01:42]} 20. Qh5 {[%clk 0:01:06]}  f4 {[%clk 0:01:38]} 21. Bd4 {[%clk 0:01:06]}  Bxb3 {[%clk 0:01:34]} 22. Bxe5 {[%clk 0:01:05]}  dxe5 {[%clk 0:01:35]} 23. axb3 {[%clk 0:01:05]}  Nxd5 {[%clk 0:01:26]} 24. Bc4 {[%clk 0:00:45]}  Rxb7 {[%clk 0:01:18]} 25. Rfd1 {[%clk 0:00:34]}  Rd7 {[%clk 0:01:18]} 26. Qf3 {[%clk 0:00:32]}  e4 {[%clk 0:00:41]} 27. Qxe4 {[%clk 0:00:31]}  Re8 {[%clk 0:00:33]} 28. Bxd5+ {[%clk 0:00:29]}  Kg7 {[%clk 0:00:30]} 29. Qd4+ {[%clk 0:00:26]}  Qf6 {[%clk 0:00:17]} 30. Qxf6+ {[%clk 0:00:19]}  Kxf6 {[%clk 0:00:18]} 31. Bc4 {[%clk 0:00:13]}  Red8 {[%clk 0:00:16]} 32. Rxd7 {[%clk 0:00:13]}  Rxd7 {[%clk 0:00:17]} 33. Re1 {[%clk 0:00:11]}  Rd2 {[%clk 0:00:16]} 34. Re2 {[%clk 0:00:11]}  Rd1+ {[%clk 0:00:16]} 35. Kf2 {[%clk 0:00:12]}  h5 {[%clk 0:00:16]} 36. h3 {[%clk 0:00:11]}  g4 {[%clk 0:00:15]} 37. hxg4 {[%clk 0:00:11]}  hxg4 {[%clk 0:00:16]} 38. Re4 {[%clk 0:00:11]}  Kf5 {[%clk 0:00:14]} 39. Re2 {[%clk 0:00:10]}  Kg5 {[%clk 0:00:14]} 40. Rc2 {[%clk 0:00:08]}  Kh4 {[%clk 0:00:11]} 41. b4 {[%clk 0:00:08]}  Rd4 {[%clk 0:00:10]} 42. b5 {[%clk 0:00:08]}  Rd7 {[%clk 0:00:08]} 43. b6 {[%clk 0:00:08]}  Rb7 {[%clk 0:00:08]} 44. b4 {[%clk 0:00:04]}  Rxb6 {[%clk 0:00:08]} 45. b5 {[%clk 0:00:05]}  Kg5 {[%clk 0:00:07]} 46. Rd2 {[%clk 0:00:05]}  Kf5 {[%clk 0:00:05]} 47. Rd7 {[%clk 0:00:03]}  Ke4 {[%clk 0:00:04]} 48. Rg7 {[%clk 0:00:03]}  g3+ {[%clk 0:00:04]} 49. Ke2 {[%clk 0:00:03]}  Kd4 {[%clk 0:00:04]} 50. Bd3 {[%clk 0:00:03]}  Re6+ {[%clk 0:00:04]} 51. Kd2 {[%clk 0:00:03]}  Rd6 {[%clk 0:00:03]} 52. Rf7 {[%clk 0:00:03]}  Ke5 {[%clk 0:00:02]} 53. Re7+ {[%clk 0:00:03]}  Kd4 {[%clk 0:00:02]} 54. Re4+ {[%clk 0:00:04]}  Kc5 {[%clk 0:00:03]} 55. Rxf4 {[%clk 0:00:05]}  Rg6 {[%clk 0:00:01]} 56. Rf3 {[%clk 0:00:05]}  Rg5 {[%clk 0:00:01]} 57. Rf5+ {[%clk 0:00:05]}  Rxf5 {[%clk 0:00:01]} 58. Bxf5 {[%clk 0:00:06]}  Kxb5 {[%clk 0:00:02]} 59. Ke3 {[%clk 0:00:07]}  Kc5 {[%clk 0:00:02]} 60. Kf3 {[%clk 0:00:07]}  Kd6 {[%clk 0:00:03]} 61. Kxg3 {[%clk 0:00:08]}  Ke5 {[%clk 0:00:04]} 62. Kg4 {[%clk 0:00:08]}  Kf6 {[%clk 0:00:05]} 63. Kf4 {[%clk 0:00:09]}  Kg7 {[%clk 0:00:05]} 64. g4 {[%clk 0:00:10]}  Kh6 {[%clk 0:00:06]} 65. g5+ {[%clk 0:00:10]}  Kg7 {[%clk 0:00:07]} 66. Ke5 {[%clk 0:00:09]}  Kf7 {[%clk 0:00:08]} 67. g6+ {[%clk 0:00:09]}  Kg7 {[%clk 0:00:08]} 68. Be4 {[%clk 0:00:09]}  Kf8 {[%clk 0:00:08]} 69. Kf6 {[%clk 0:00:09]}  Kg8 {[%clk 0:00:09]} 70. Bd5+ {[%clk 0:00:09]}  Kh8 {[%clk 0:00:07]} 71. g7+ {[%clk 0:00:10]}  Kh7 {[%clk 0:00:08]} 72. g8=Q+ {[%clk 0:00:10]}  Kh6 {[%clk 0:00:09]} 73. Qg6# {[%clk 0:00:10]} 1-0


[Site "https://www.chess.com"]

[Event "Titled Tuesday Blitz December 20 Early 2022"]
[White "sergeikim"]
[Black "Baki, Peter"]
[BlackFideId "718459"]
[WhiteElo "2606"]
[BlackElo "2100"]
[Result "1-0"]
[Round "08"]
[TimeControl "180+2"]
[Date "2022.12.20"]
[WhiteClock "0:00:39"]
[BlackClock "0:00:06"]

1. d4 {[%clk 0:03:00]}  Nf6 {[%clk 0:02:58]} 2. c4 {[%clk 0:03:00]}  g6 {[%clk 0:02:58]} 3. Nc3 {[%clk 0:03:01]}  d5 {[%clk 0:02:58]} 4. cxd5 {[%clk 0:03:00]}  Nxd5 {[%clk 0:02:58]} 5. e4 {[%clk 0:03:01]}  Nxc3 {[%clk 0:02:58]} 6. bxc3 {[%clk 0:03:02]}  Bg7 {[%clk 0:02:58]} 7. Bc4 {[%clk 0:03:02]}  O-O {[%clk 0:02:58]} 8. Ne2 {[%clk 0:03:02]}  c5 {[%clk 0:02:58]} 9. O-O {[%clk 0:03:02]}  Nc6 {[%clk 0:02:59]} 10. Be3 {[%clk 0:03:01]}  Bg4 {[%clk 0:02:58]} 11. f3 {[%clk 0:03:01]}  Na5 {[%clk 0:02:57]} 12. Bd3 {[%clk 0:03:00]}  cxd4 {[%clk 0:02:54]} 13. cxd4 {[%clk 0:03:00]}  Bd7 {[%clk 0:02:54]} 14. Qd2 {[%clk 0:02:59]}  Rc8 {[%clk 0:02:53]} 15. Bh6 {[%clk 0:02:53]}  Nc4 {[%clk 0:02:51]} 16. Bxc4 {[%clk 0:02:53]}  Rxc4 {[%clk 0:02:52]} 17. Bxg7 {[%clk 0:02:53]}  Kxg7 {[%clk 0:02:52]} 18. Rfc1 {[%clk 0:02:48]}  Rxc1+ {[%clk 0:02:47]} 19. Rxc1 {[%clk 0:02:47]}  Qb6 {[%clk 0:02:47]} 20. h4 {[%clk 0:02:31]}  Rc8 {[%clk 0:02:46]} 21. Rxc8 {[%clk 0:02:28]}  Bxc8 {[%clk 0:02:46]} 22. h5 {[%clk 0:02:24]}  Be6 {[%clk 0:02:19]} 23. h6+ {[%clk 0:02:20]}  Kf8 {[%clk 0:02:15]} 24. Kh2 {[%clk 0:02:06]}  f6 {[%clk 0:02:12]} 25. d5 {[%clk 0:02:00]}  Qc7+ {[%clk 0:02:07]} 26. Kh1 {[%clk 0:01:54]}  Bd7 {[%clk 0:02:05]} 27. Nd4 {[%clk 0:01:46]}  Kf7 {[%clk 0:01:56]} 28. Qb4 {[%clk 0:01:36]}  Qc1+ {[%clk 0:01:49]} 29. Kh2 {[%clk 0:01:36]}  Qxh6+ {[%clk 0:01:49]} 30. Kg1 {[%clk 0:01:37]}  Qe3+ {[%clk 0:01:48]} 31. Kh2 {[%clk 0:01:36]}  Qf4+ {[%clk 0:01:48]} 32. Kg1 {[%clk 0:01:35]}  Qc7 {[%clk 0:01:47]} 33. Qb3 {[%clk 0:01:30]}  Kg7 {[%clk 0:01:45]} 34. Qb4 {[%clk 0:01:25]}  Kf7 {[%clk 0:01:43]} 35. Qb3 {[%clk 0:01:25]}  Qc5 {[%clk 0:01:36]} 36. Qb2 {[%clk 0:01:21]}  b5 {[%clk 0:01:29]} 37. Kh1 {[%clk 0:01:17]}  b4 {[%clk 0:01:28]} 38. Nb3 {[%clk 0:01:15]}  Qe3 {[%clk 0:01:21]} 39. Qc2 {[%clk 0:01:13]}  Qc3 {[%clk 0:01:15]} 40. Qf2 {[%clk 0:01:13]}  Qc7 {[%clk 0:01:08]} 41. Qd4 {[%clk 0:01:06]}  a5 {[%clk 0:01:06]} 42. Nc5 {[%clk 0:01:02]}  h5 {[%clk 0:00:29]} 43. f4 {[%clk 0:00:54]}  Bg4 {[%clk 0:00:28]} 44. e5 {[%clk 0:00:53]}  Bf5 {[%clk 0:00:17]} 45. d6 {[%clk 0:00:51]}  exd6 {[%clk 0:00:17]} 46. exd6 {[%clk 0:00:52]}  Qc6 {[%clk 0:00:14]} 47. d7 {[%clk 0:00:50]}  Bxd7 {[%clk 0:00:14]} 48. Nxd7 {[%clk 0:00:47]}  a4 {[%clk 0:00:14]} 49. Nc5 {[%clk 0:00:45]}  b3 {[%clk 0:00:11]} 50. axb3 {[%clk 0:00:44]}  a3 {[%clk 0:00:12]} 51. b4 {[%clk 0:00:43]}  Qa8 {[%clk 0:00:09]} 52. Qd7+ {[%clk 0:00:40]}  Kg8 {[%clk 0:00:09]} 53. Ne6 {[%clk 0:00:40]}  Qa7 {[%clk 0:00:06]} 54. Qxa7 {[%clk 0:00:39]} 1-0


[Site "https://www.chess.com"]